Cogmind - Beta 14 @@@ ROGUE MODE // 2024.11.12 @ 22:11:52 Player: Knjet Result: Destroyed by G-67 Veteran with Field Laser Performance ------------- Evolutions (7) 3500 Regions Visited (17) 3400 Robots Destroyed (46) 230 Value Destroyed (1567) 1567 Prototype IDs (5) 100 Alien Tech Used (0) 0 Bonus (2199) 2199 TOTAL SCORE: 10996 Bonus ------- Triggered Max Security 1000 Follower Combat Kills 99 Entered DSFs 500 Aligned with FarCom 300 Acquired ECA 300 Cogmind --------- Core Integrity 0/1300 Matter 262/300 Energy 100/100 System Corruption 0% Temperature Cool (24) Movement Treading (160) Location -3/Testing Parts ------- > --- POWER (2) -------- (None) > --- PROPULSION (6) --- Enhanced Armored Medium Treads > --- UTILITY (10) ----- (None) > --- WEAPON (3) ------- (None) > --- INVENTORY (5) ---- Long-range Terrain Scanner Improved Reaction Control System Layered Light Armor Plating Advanced Shield Generator Peak State ------------ > --- POWER ------------ Particle Reactor > --- PROPULSION ------- Combat Gravmag System Combat Gravmag System > --- UTILITY ---------- Encrypted Comm Array Melee Analysis Suite Advanced Melee Analysis Suite Core Analyzer ECM Suite System Guard Improved System Restoration Module > --- WEAPON ----------- Backup Laser III Power Maul Ripper > --- INVENTORY -------- Combat Gravmag System Improved Reaction Control System Layered Light Armor Plating Advanced Shield Generator [Rating: 61] Favorites ----------- Power Light Ion Engine Engine Light Ion Engine Power Core Light Nuclear Core Reactor Particle Reactor Propulsion Aluminum Leg Treads Light Treads Leg Aluminum Leg Hover Unit Combat Gravmag System Flight Unit Cesium-ion Thruster Utility Splice Drone Bay Device Splice Drone Bay Storage Small Storage Unit Processor Advanced Melee Analysis Suite Hackware Improved Hacking Suite Protection Improved Light Armor Plating Weapon Assault Rifle Energy Gun Beamcaster Energy Cannon Ion Cannon Ballistic Gun Assault Rifle Ballistic Cannon Flak Cannon Launcher Grenade Launcher Impact Weapon Power Maul Slashing Weapon Katana Build | -11 -10 -10 -10 -9 -8 -7 -7 -6 -6 -6 -6 -5 -5 -5 -4 -3 -3 ------- Run | Yrd Mat Min Exi Min Mat Fac DSF Fac Was Fac Low Fac Was Fac Fac Res Tes Slots Evolved 14 | . . . . . 4 2 . 2 . . . 2 . . 2 2 . Power 1 | . . . . . . . . . . . . 1 . . . . . Propulsion 4 | . . . . . 1 1 . . . . . . . . 1 1 . Utility 8 | . . . . . 3 1 . 2 . . . 1 . . . 1 . Weapon 1 | . . . . . . . . . . . . . . . 1 . . Parts Attached 88 | 6 2 11 . . 9 1 22 . . 3 11 1 . 8 2 8 4 Power 11 | 1 . 2 . . 1 . 2 . . . 1 . . 2 1 1 . Engine 8 | 1 . 2 . . 1 . 1 . . . . . . 2 1 . . Core 2 | . . . . . . . 1 . . . 1 . . . . . . Reactor 1 | . . . . . . . . . . . . . . . . 1 . Propulsion 28 | 2 . 3 . . 1 1 11 . . . 4 . . 1 . 3 2 Treads 3 | 2 . . . . . . . . . . . . . . . . 1 Leg 16 | . . 3 . . 1 1 7 . . . 4 . . . . . . Wheel . | . . . . . . . . . . . . . . . . . . Hover 3 | . . . . . . . . . . . . . . . . 2 1 Flight 6 | . . . . . . . 4 . . . . . . 1 . 1 . Utility 23 | 1 . 2 . . 4 . 1 . . 3 2 1 . 4 1 3 1 Device 11 | . . 1 . . 2 . 1 . . 1 1 . . 1 1 2 1 Storage 3 | 1 . 1 . . 1 . . . . . . . . . . . . Processor 4 | . . . . . . . . . . 1 1 . . 2 . . . Hackware 3 | . . . . . . . . . . 1 . . . 1 . 1 . Protection 2 | . . . . . 1 . . . . . . 1 . . . . . Artifact . | . . . . . . . . . . . . . . . . . . Weapon 26 | 2 2 4 . . 3 . 8 . . . 4 . . 1 . 1 1 Energy Gun 5 | 1 . . . . 1 . 2 . . . 1 . . . . . . Energy Cannon 3 | . . . . . . . 2 . . . . . . . . . 1 Ballistic Gun 7 | 1 2 3 . . . . . . . . 1 . . . . . . Ballistic Cannon 1 | . . . . . 1 . . . . . . . . . . . . Launcher 5 | . . 1 . . 1 . 3 . . . . . . . . . . Special Weapon . | . . . . . . . . . . . . . . . . . . Impact Weapon 1 | . . . . . . . . . . . . . . . . 1 . Slashing Weapon 4 | . . . . . . . 1 . . . 2 . . 1 . . . Piercing Weapon . | . . . . . . . . . . . . . . . . . . Special Melee Weapon . | . . . . . . . . . . . . . . . . . . Unidentified Prototypes 5 | . . 1 . . 2 . . . . . . 1 . . . . 1 Parts Lost 42 | . . 3 . . . . 8 . . . 8 . 3 2 . 17 1 Power 8 | . . 1 . . . . 3 . . . 1 . . 1 . 2 . Propulsion 11 | . . 2 . . . . 2 . . . 3 . 2 . . 2 . Utility 13 | . . . . . . . 2 . . . 1 . . . . 10 . Weapon 10 | . . . . . . . 1 . . . 3 . 1 1 . 3 1 Highest Loss Streak 12 | . . 3 . . . . 4 . . . 5 . 2 1 . 12 1 To Critical Strikes . | . . . . . . . . . . . . . . . . . . Average Slot Usage (%) 69 | . 85 85 100 100 97 91 56 26 26 39 28 59 45 46 54 49 5 Engine 6 | . 14 12 14 14 9 7 3 . . . . . . 2 2 . . Treads 1 | . 28 3 . . . . . . . . . . . . . . . Leg 15 | . . 22 28 28 27 29 18 . . . 1 23 11 . . . . Flight 2 | . . . . . . . 3 20 20 20 2 . . 4 5 . . Device 9 | . . 2 14 14 26 23 12 . . 6 1 5 5 2 5 5 . Storage 6 | . 14 13 14 14 9 7 5 . . . . . . . . . . Processor 5 | . . . . . . . . . . 4 6 11 11 17 21 16 . Hackware 2 | . . . . . . . . . . 1 6 5 5 5 10 5 . Protection 1 | . . . . . 7 7 2 . . . . . . . . . . Energy Gun 2 | . 10 . . . 5 7 4 . . . . 5 5 4 5 3 . Ballistic Gun 9 | . 17 23 28 28 6 . . . . . . . . . . . . Slashing Weapon 1 | . . . . . . . . 6 6 6 6 5 3 4 5 3 . Peak Build Rating 61 | 6 6 13 14 14 36 40 52 13 14 27 38 44 44 50 54 61 21 Average Rating 25 | 4 5 7 13 14 32 39 29 13 13 21 19 39 32 41 51 48 10 On Entrance 22 | . 6 6 13 14 14 36 40 13 13 14 27 38 44 23 50 53 2 Naked Turns 35 | . . . . . . . 3 . . . . . . . . 22 10 Heaviest Build 44 | 13 14 20 20 20 41 38 44 2 2 3 8 9 9 19 12 30 11 Greatest Support 80 | 40 40 40 20 20 30 48 80 15 10 10 60 60 15 13 13 28 35 Greatest Overweight (x) 6 | . . 3 . . 1 1 4 . . . 2 2 1 6 . 1 . Average Overweight (x) . | . . . . . . . . . . . . 1 . . . . . Largest Inventory Capacity 10 | 8 8 8 8 8 10 10 10 5 5 5 5 5 5 5 5 5 5 Average Capacity 7 | 7 8 7 8 8 10 10 9 5 5 5 5 5 5 5 5 5 5 Most Carried 10 | 3 7 8 8 8 10 10 10 4 5 5 5 5 5 5 5 5 4 Average Carried 6 | 1 3 7 7 7 8 9 7 4 4 4 4 4 5 4 4 4 3 Final Capacity 10 | 8 8 8 8 8 10 10 5 5 5 5 5 5 5 5 5 5 5 Final Carried 10 | 3 7 8 8 8 10 10 4 4 5 5 5 5 5 4 5 4 4 Class Distribution -------------------- 50% | Mutant 15% | Scavenger-Mutant 12% | Skirmisher 6% | Sprinter 6% | Hacker-Mutant 3% | Hacker-Gladiator Dominant Class ---------------- Mutant | -10/Materials Mutant | -10/Mines Mutant | -10/Exiles Mutant | -9/Mines Skirmisher | -8/Materials Skirmisher | -7/Factory Mutant | -7/DSF Sprinter | -6/Factory Sprinter | -6/Waste Sprinter | -6/Factory Mutant | -6/Lower Caves Scavenger-Mutant | -5/Factory Scavenger-Mutant | -5/Waste Scavenger-Mutant | -5/Factory Hacker-Mutant | -4/Factory Hacker-Gladiator | -3/Research Mutant | -3/Testing Resources | -11 -10 -10 -10 -9 -8 -7 -7 -6 -6 -6 -6 -5 -5 -5 -4 -3 -3 ----------- Run | Yrd Mat Min Exi Min Mat Fac DSF Fac Was Fac Low Fac Was Fac Fac Res Tes Matter Collected 1377 | 268 15 253 . 60 102 . 108 . . . 363 . . 78 93 37 . Remotely 48 | . . . . . . . . . . . 48 . . . . . . Salvage Created 1830 | 110 178 282 . . 37 . 296 . . . 353 . . 78 311 185 . Parts 80 | 9 1 17 . . 3 . 14 . . . 15 . . 8 10 3 . Haulers Intercepted 1 | . . . . . 1 . . . . . . . . . . . . Recyclers Shooed 2 | 1 . . . . . . . . . . . . . . 1 . . Parts Field Recycled . | . . . . . . . . . . . . . . . . . . Retrieved Matter . | . . . . . . . . . . . . . . . . . . Parts Self-Destructed 9 | . . . . . . . . . . . 9 . . . . . . Prevented . | . . . . . . . . . . . . . . . . . . Kills | -11 -10 -10 -10 -9 -8 -7 -7 -6 -6 -6 -6 -5 -5 -5 -4 -3 -3 ------- Run | Yrd Mat Min Exi Min Mat Fac DSF Fac Was Fac Low Fac Was Fac Fac Res Tes Combat Hostiles Destroyed 39 | . 4 12 . . . . 9 . . . 9 . . 1 2 2 . Melee 13 | . . . . . . . . . . . 8 . . 1 2 2 . Guns 13 | . 4 6 . . . . 2 . . . 1 . . . . . . Cannons 2 | . . . . . . . 2 . . . . . . . . . . AOE 10 | . . 6 . . . . 4 . . . . . . . . . . Classes Destroyed 12 | 3 1 1 . . 1 . 3 . . . 1 . . 2 . . . Worker 2 | 2 . . . . . . . . . . . . . . . . . Tunneler 1 | 1 . . . . . . . . . . . . . . . . . Hauler 1 | . . . . . 1 . . . . . . . . . . . . Recycler 2 | 1 . . . . . . . . . . . . . . 1 . . Operator 1 | . . . . . . . . . . . . . . 1 . . . Swarmer 11 | . . 6 . . . . . . . . 5 . . . . . . Cutter 3 | . . . . . . . 3 . . . . . . . . . . Grunt 15 | . 4 6 . . . . 4 . . . 1 . . . . . . Duelist 1 | . . . . . . . 1 . . . . . . . . . . Sentry 5 | . . . . . . . . . . . 1 . . . 2 2 . Programmer 1 | . . . . . . . . . . . . . . 1 . . . Heavy 1 | . . . . . . . 1 . . . . . . . . . . Thug 1 | . . . . . . . . . . . 1 . . . . . . Butcher 1 | . . . . . . . . . . . 1 . . . . . . Best Kill Streak 5 | 4 4 5 . . 1 . 5 . . . 3 . . 1 2 2 . Combat Bots Only 5 | . 4 5 . . . . 5 . . . 3 . . 1 1 2 . Max Kills in Single Turn 3 | 1 1 3 . . 1 . 2 . . . 1 . . 1 1 1 . Gunslinging 1 | . . 1 . . . . . . . . . . . . . . . Exploded 2 | . . 2 . . . . 2 . . . . . . . . . . Melee 1 | . . . . . . . . . . . 1 . . 1 1 1 . Uniques/NPCs Destroyed . | . . . . . . . . . . . . . . . . . . Combat | -11 -10 -10 -10 -9 -8 -7 -7 -6 -6 -6 -6 -5 -5 -5 -4 -3 -3 -------- Run | Yrd Mat Min Exi Min Mat Fac DSF Fac Was Fac Low Fac Was Fac Fac Res Tes Hostile Shots Fired 752 | . 34 52 . 4 . . 110 . . . 94 10 3 16 9 338 82 Missed 313 | . 5 16 . 1 . . 38 . . . 26 5 1 6 5 171 39 Damage Taken 7747 | . 396 402 . 120 . . 2150 . . . 1198 77 86 451 428 1685 754 Core 3426 | . 58 109 . 12 . . 594 . . . 849 . . 288 214 952 350 Absorbed by Shields . | . . . . . . . . . . . . . . . . . . Core Remaining (%) 56 | 100 . . . 28 100 . 15 . . . . . . 71 81 . . Volleys Fired 106 | 8 19 24 . . 4 . 41 . . . 7 . . 1 1 . 1 Largest 2 | 2 2 2 . . 2 . 2 . . . 1 . . 1 1 . 1 Hottest 123 | 70 70 50 . . 107 . 123 . . . 23 . . 75 40 . 88 Shots Fired 180 | 16 38 48 . . 8 . 61 . . . 6 . . 1 1 . 1 Gun 138 | 16 38 41 . . 6 . 29 . . . 6 . . 1 1 . . Cannon 26 | . . . . . 2 . 23 . . . . . . . . . 1 Launcher 16 | . . 7 . . . . 9 . . . . . . . . . . Special . | . . . . . . . . . . . . . . . . . . Kinetic 87 | 8 21 41 . . 6 . 5 . . . 6 . . . . . . Thermal 72 | 8 17 . . . 2 . 43 . . . . . . 1 1 . . Explosive 12 | . . 7 . . . . 5 . . . . . . . . . . Electromagnetic 9 | . . . . . . . 8 . . . . . . . . . 1 Robot Hit Streak 19 | 7 19 6 . . 5 . 7 . . . 5 . . . . . 4 Robot Miss Streak 6 | 1 2 3 . . 1 . 6 . . . 1 . . . . . . Penetration Max . | . . . . . . . . . . . . . . . . . . Secondary Targets 1 | . . 1 . . . . . . . . . . . . . . . Max Gunslinging Chain 1 | . . 1 . . . . . . . . . . . . . . . Shots Hit Robots 156 | 10 27 29 . . 5 . 32 . . . 25 . . 4 8 15 1 Core Hits 88 | 6 10 21 . . 2 . 22 . . . 14 . . 2 5 5 1 Critical Kills . | . . . . . . . . . . . . . . . . . . Critical Parts Destroyed . | . . . . . . . . . . . . . . . . . . Critical Strikes 12 | 1 3 . . . . . 1 . . . 2 . . 1 2 2 . Burn 5 | 1 3 . . . . . 1 . . . . . . . . . . Sever 7 | . . . . . . . . . . . 2 . . 1 2 2 . Melee Attacks 84 | . . . . . . . . 2 . . 30 . . 7 15 30 . Impact 7 | . . . . . . . . . . . . . . . . 7 . Slashing 77 | . . . . . . . . 2 . . 30 . . 7 15 23 . Piercing . | . . . . . . . . . . . . . . . . . . Sneak Attacks 2 | . . . . . . . . . . . . . . 1 1 . . Combat Hostiles . | . . . . . . . . . . . . . . . . . . Follow-up Attacks 2 | . . . . . . . . . . . . . . . . 2 . Damage Inflicted 4251 | 100 278 674 . . 91 . 1123 . . . 739 . . 234 372 603 37 Guns 1159 | 100 277 318 . . 53 . 328 . . . 83 . . . . . . Cannons 363 | . . . . . 34 . 292 . . . . . . . . . 37 Explosions 852 | . . 349 . . . . 503 . . . . . . . . . . Melee 1853 | . . . . . . . . . . . 656 . . 234 372 591 . Ramming 24 | . 1 7 . . 4 . . . . . . . . . . 12 . Kinetic 752 | 39 112 318 . . 71 . 129 . . . 83 . . . . . . Thermal 647 | 61 165 . . . 16 . 405 . . . . . . . . . . Explosive 680 | . . 349 . . . . 331 . . . . . . . . . . Electromagnetic 295 | . . . . . . . 258 . . . . . . . . . 37 Impact 70 | . . . . . . . . . . . . . . . . 70 . Slashing 1783 | . . . . . . . . . . . 656 . . 234 372 521 . Piercing . | . . . . . . . . . . . . . . . . . . Highest Corruption 10 | . . . . . . . . . 10 10 10 . 9 9 . . . Average Corruption 8 | . . . . . . . . . 10 10 10 . 9 6 . . . Corruption Purged . | . . . . . . . . . . . . . . . . . . Corruption Blocked . | . . . . . . . . . . . . . . . . . . Effects 34 | . . . . . . . . . 1 7 8 . 4 14 . . . Message Errors 7 | . . . . . . . . . . 3 1 . 2 1 . . . Matter Fused 9 | . . . . . . . . . . 2 2 . 1 4 . . . Heat Flow Errors 3 | . . . . . . . . . . 1 1 . . 1 . . . Energy Discharges 5 | . . . . . . . . . . . 2 . . 3 . . . Parts Rejected 1 | . . . . . . . . . . . . . 1 . . . . Data Loss (minor) 5 | . . . . . . . . . 1 1 1 . . 2 . . . Data Loss (major) 2 | . . . . . . . . . . . . . . 2 . . . Alerts 1 | . . . . . . . . . . . . . . 1 . . . Weapon Failures 1 | . . . . . . . . . . . 1 . . . . . . Overload Shots . | . . . . . . . . . . . . . . . . . . Overflow Damage 136 | . . . . . . . 35 . . . 25 . . 27 49 . . Projectiles . | . . . . . . . . . . . . . . . . . . Explosions 35 | . . . . . . . 35 . . . . . . . . . . Melee 101 | . . . . . . . . . . . 25 . . 27 49 . . Knockbacks 2 | . . . . . . . 1 . . . . . . . . 1 . Impact 1 | . . . . . . . . . . . . . . . . 1 . Kinetic 1 | . . . . . . . 1 . . . . . . . . . . Secondary . | . . . . . . . . . . . . . . . . . . Self-Inflicted Damage 195 | . . . . . . . 189 . . . . . . . . 6 . Shots 6 | . . . . . . . 6 . . . . . . . . . . Rammed 4 | . 1 . . . . . . . . . . . . . . 3 . Targets Rammed 7 | . 1 2 . . 1 . . . . . . . . . . 3 . Kicked 3 | . . 2 . . 1 . . . . . . . . . . . . Crushed . | . . . . . . . . . . . . . . . . . . Highest Temperature 1194 | 140 369 9 . . 72 . 1194 . . 167 163 . . 226 . . . Average Temperature 196 | 68 189 4 . . 37 . 341 . . 95 90 . . 126 . . . Received Heat Transfer 903 | . 246 165 . . . . 216 . . . 129 . . . 18 72 57 Effects 11 | . . . . . . . 11 . . . . . . . . . . Energy Bleed 2 | . . . . . . . 2 . . . . . . . . . . Interference 1 | . . . . . . . 1 . . . . . . . . . . Matter Decay 4 | . . . . . . . 4 . . . . . . . . . . Damage (minor) 1 | . . . . . . . 1 . . . . . . . . . . Damage (core) 3 | . . . . . . . 3 . . . . . . . . . . Siege Activations . | . . . . . . . . . . . . . . . . . . Robots Corrupted . | . . . . . . . . . . . . . . . . . . Combat Hostiles . | . . . . . . . . . . . . . . . . . . Parts Fried 2 | . . . . . . . 2 . . . . . . . . . . Impact Corruptions . | . . . . . . . . . . . . . . . . . . Robots Melted . | . . . . . . . . . . . . . . . . . . Combat Hostiles . | . . . . . . . . . . . . . . . . . . Parts Melted 3 | . 3 . . . . . . . . . . . . . . . . Heat Transferred 1850 | 259 703 . . . 37 . 851 . . . . . . . . . . Parts Sabotaged 1 | . . . . . . . . . . . . . . . . . 1 Parts Stolen . | . . . . . . . . . . . . . . . . . . Parts Stripped . | . . . . . . . . . . . . . . . . . . Power Chain Reactions 1 | . . . . . . . 1 . . . . . . . . . . Alert | -11 -10 -10 -10 -9 -8 -7 -7 -6 -6 -6 -6 -5 -5 -5 -4 -3 -3 ------- Run | Yrd Mat Min Exi Min Mat Fac DSF Fac Was Fac Low Fac Was Fac Fac Res Tes Peak Influence 1605 | 20 143 316 . . 45 14 294 155 99 129 . 107 37 95 168 122 1605 Initial 154 | . 13 55 . . . 9 9 154 54 69 . 104 37 4 15 87 12 Average 124 | 3 82 157 . . 20 9 171 154 70 72 . 104 24 26 75 78 1588 Maximum Alert Level 5 | . . 1 . . . . 1 . . . . . . . . . 5 Low Security (%) 88 | 100 100 73 . 100 100 100 47 100 100 100 . 100 100 100 100 100 . Level 1 8 | . . 26 . . . . 52 . . . . . . . . . . Level 2 . | . . . . . . . . . . . . . . . . . . Level 3 . | . . . . . . . . . . . . . . . . . . Level 4 . | . . . . . . . . . . . . . . . . . . Level 5 . | . . . . . . . . . . . . . . . . . . High Security . | . . . . . . . . . . . . . . . . . . Max Security 3 | . . . . . . . . . . . . . . . . . 99 Sterilizations 1 | . . . . . . . 1 . . . . . . . . . . Squads Dispatched 18 | . 1 . . . 1 . 2 . . 1 . 1 . 2 1 3 6 Investigation 6 | . 1 . . . 1 . . . . 1 . 1 . . 1 1 . Extermination 1 | . . . . . . . . . . . . . . . . 1 . Reinforcement 5 | . . . . . . . 2 . . . . . . 2 . 1 . Assault 6 | . . . . . . . . . . . . . . . . . 6 Garrison . | . . . . . . . . . . . . . . . . . . Intercept . | . . . . . . . . . . . . . . . . . . Searches Triggered . | . . . . . . . . . . . . . . . . . . Construction Impeded . | . . . . . . . . . . . . . . . . . . Haulers Reinforced . | . . . . . . . . . . . . . . . . . . Active Scanning Responses . | . . . . . . . . . . . . . . . . . . Cargo Convoy Interrupts . | . . . . . . . . . . . . . . . . . . Stealth | -11 -10 -10 -10 -9 -8 -7 -7 -6 -6 -6 -6 -5 -5 -5 -4 -3 -3 --------- Run | Yrd Mat Min Exi Min Mat Fac DSF Fac Was Fac Low Fac Was Fac Fac Res Tes Distress Signals 3 | . 2 . . . . . . . . . . . . 1 . . . Communications Jammed . | . . . . . . . . . . . . . . . . . . Distress Signals . | . . . . . . . . . . . . . . . . . . Times Spotted 109 | . 7 13 . 1 5 . 19 . 5 3 11 1 4 5 3 8 24 Peak Tracking Total 22 | . 7 5 . 1 1 . 5 . 5 3 7 5 5 4 1 7 22 Tactical Retreats 9 | . . 1 . . . . 3 . . 1 1 . . 1 . 1 1 Traps | -11 -10 -10 -10 -9 -8 -7 -7 -6 -6 -6 -6 -5 -5 -5 -4 -3 -3 ------- Run | Yrd Mat Min Exi Min Mat Fac DSF Fac Was Fac Low Fac Was Fac Fac Res Tes Traps Triggered 8 | . 1 . . . . . 1 1 . . . 1 . 1 1 2 . Indirectly . | . . . . . . . . . . . . . . . . . . Trap Hack Attempts . | . . . . . . . . . . . . . . . . . . Triggered . | . . . . . . . . . . . . . . . . . . Disarmed . | . . . . . . . . . . . . . . . . . . Reprogrammed . | . . . . . . . . . . . . . . . . . . Reused . | . . . . . . . . . . . . . . . . . . Traps Extracted . | . . . . . . . . . . . . . . . . . . Installed . | . . . . . . . . . . . . . . . . . . Triggered 2 | . . . . . . . . . . . 2 . . . . . . Machines | -11 -10 -10 -10 -9 -8 -7 -7 -6 -6 -6 -6 -5 -5 -5 -4 -3 -3 ---------- Run | Yrd Mat Min Exi Min Mat Fac DSF Fac Was Fac Low Fac Was Fac Fac Res Tes Machines Disabled 2 | . . 2 . . . . . . . . . . . . . . . Max in Single Turn 2 | . . 2 . . . . . . . . . . . . . . . Machines Repaired . | . . . . . . . . . . . . . . . . . . Machines Dismantled . | . . . . . . . . . . . . . . . . . . Machines Sabotaged . | . . . . . . . . . . . . . . . . . . Overloaded Fab Kills . | . . . . . . . . . . . . . . . . . . Hacking | -11 -10 -10 -10 -9 -8 -7 -7 -6 -6 -6 -6 -5 -5 -5 -4 -3 -3 --------- Run | Yrd Mat Min Exi Min Mat Fac DSF Fac Was Fac Low Fac Was Fac Fac Res Tes Machines Accessed 15 | . . 1 1 . 2 3 . . . 2 . 1 . 3 1 1 . Terminals 12 | . . . . . 2 2 . . . 2 . 1 . 3 1 1 . Fabricators . | . . . . . . . . . . . . . . . . . . Repair Stations . | . . . . . . . . . . . . . . . . . . Recycling Units 1 | . . . . . . 1 . . . . . . . . . . . Scanalyzers . | . . . . . . . . . . . . . . . . . . Garrison Access . | . . . . . . . . . . . . . . . . . . Total Hacks 28 | . . 1 3 . 4 3 . . . 3 . 6 . 3 3 2 . Successful 17 | . . 1 3 . 2 2 . . . . . 5 . 2 2 . . Failed 10 | . . . . . 2 1 . . . 3 . . . 1 1 2 . Catastrophic 6 | . . . . . 2 . . . . 1 . . . 1 . 2 . Database Lockouts 1 | . . . . . . . . . . . . 1 . . . . . Manual 22 | . . . 1 . 4 3 . 2 . 4 . 2 . 2 2 2 . Terminals 23 | . . . . . 4 2 . . . 3 . 6 . 3 3 2 . Fabricators . | . . . . . . . . . . . . . . . . . . Repair Stations . | . . . . . . . . . . . . . . . . . . Recycling Units 1 | . . . . . . 1 . . . . . . . . . . . Scanalyzers . | . . . . . . . . . . . . . . . . . . Garrison Access . | . . . . . . . . . . . . . . . . . . Terminal Hacks 16 | . . 1 3 . 2 1 . . . . . 5 . 2 2 . . Record 7 | . . . 3 . . . . . . . . 3 . . 1 . . Open Door 1 | . . 1 . . . . . . . . . . . . . . . Open DSF 1 | . . . . . . 1 . . . . . . . . . . . Level Access Points 2 | . . . . . . . . . . . . . . 1 1 . . Emergency Access Points 1 | . . . . . 1 . . . . . . . . . . . . Alert Level 1 | . . . . . . . . . . . . . . 1 . . . Dispatch Records 1 | . . . . . . . . . . . . 1 . . . . . Investigation Status 1 | . . . . . . . . . . . . 1 . . . . . Hauler Manifests 1 | . . . . . 1 . . . . . . . . . . . . Fabricator Hacks . | . . . . . . . . . . . . . . . . . . Repair Station Hacks . | . . . . . . . . . . . . . . . . . . Recycling Unit Hacks 1 | . . . . . . 1 . . . . . . . . . . . Process 1 | . . . . . . 1 . . . . . . . . . . . Scanalyzer . | . . . . . . . . . . . . . . . . . . Garrison Access Hacks . | . . . . . . . . . . . . . . . . . . Unauthorized Hacks . | . . . . . . . . . . . . . . . . . . Terminals . | . . . . . . . . . . . . . . . . . . Fabricators . | . . . . . . . . . . . . . . . . . . Repair Stations . | . . . . . . . . . . . . . . . . . . Recycling Units . | . . . . . . . . . . . . . . . . . . Scanalyzers . | . . . . . . . . . . . . . . . . . . Garrison Access . | . . . . . . . . . . . . . . . . . . Data Cores Recovered 1 | . . . . . . . . . . . . . . 1 . . . Used 1 | . . . . . . . . . . . . . . 1 . . . Hacking Detections 10 | . . . . . 1 1 . . . 2 . 1 . 3 1 1 . Full Trace Events 5 | . . . . . 1 . . . . 1 . 1 . . 1 1 . Feedback Events 1 | . . . . . . . . . . . . . . . . 1 . Hackware Fried 1 | . . . . . . . . . . . . . . . . 1 . Feedback Blocked . | . . . . . . . . . . . . . . . . . . Robot Schematics Acquired . | . . . . . . . . . . . . . . . . . . Robots Built . | . . . . . . . . . . . . . . . . . . Authchips . | . . . . . . . . . . . . . . . . . . Time . | . . . . . . . . . . . . . . . . . . Total Robot Build Rating . | . . . . . . . . . . . . . . . . . . Part Schematics Acquired . | . . . . . . . . . . . . . . . . . . Parts Built . | . . . . . . . . . . . . . . . . . . Authchips . | . . . . . . . . . . . . . . . . . . Time . | . . . . . . . . . . . . . . . . . . Total Part Build Rating . | . . . . . . . . . . . . . . . . . . Parts Repaired . | . . . . . . . . . . . . . . . . . . Time . | . . . . . . . . . . . . . . . . . . Parts Recycled . | . . . . . . . . . . . . . . . . . . Recycled Matter 18 | . . . . . . 18 . . . . . . . . . . . Retrieved Matter . | . . . . . . . . . . . . . . . . . . Retrieved Components . | . . . . . . . . . . . . . . . . . . Parts Scanalyzed . | . . . . . . . . . . . . . . . . . . Part Schematics Acquired . | . . . . . . . . . . . . . . . . . . Parts Damaged . | . . . . . . . . . . . . . . . . . . Bothacking | -11 -10 -10 -10 -9 -8 -7 -7 -6 -6 -6 -6 -5 -5 -5 -4 -3 -3 ------------ Run | Yrd Mat Min Exi Min Mat Fac DSF Fac Was Fac Low Fac Was Fac Fac Res Tes Used RIF Installer . | . . . . . . . . . . . . . . . . . . Robots Hacked . | . . . . . . . . . . . . . . . . . . Non-combat . | . . . . . . . . . . . . . . . . . . Combat . | . . . . . . . . . . . . . . . . . . Robot Hacks Applied . | . . . . . . . . . . . . . . . . . . Relay Couplers Released . | . . . . . . . . . . . . . . . . . . Fabnet Peak Effective % . | . . . . . . . . . . . . . . . . . . Robots Rewired . | . . . . . . . . . . . . . . . . . . Allies Hacked . | . . . . . . . . . . . . . . . . . . Hacks Repelled . | . . . . . . . . . . . . . . . . . . Allies | -11 -10 -10 -10 -9 -8 -7 -7 -6 -6 -6 -6 -5 -5 -5 -4 -3 -3 -------- Run | Yrd Mat Min Exi Min Mat Fac DSF Fac Was Fac Low Fac Was Fac Fac Res Tes Total Allies 2 | . . . . . . . 1 . . . 1 . . . . . . Largest Group 1 | . . . . . . . 1 . . . 1 . . . . . . Highest-Rated Group 141 | . . . . . . . 22 . . . 141 . . . . . . Highest-Rated Ally 141 | . . . . . . . 22 . . . 141 . . . . . . Warlord Squad Rendezvous 1 | . . . . . . . . . . . . . . 1 . . . Muscle 1 | . . . . . . . . . . . . . . 1 . . . Total Orders . | . . . . . . . . . . . . . . . . . . Ally Attacks 9 | . . . . . . . 5 . . . 4 . . . . . . Total Damage 144 | . . . . . . . 60 . . . 84 . . . . . . Kills 3 | . . . . . . . 2 . . . 1 . . . . . . Allies Corrupted . | . . . . . . . . . . . . . . . . . . Allies Melted . | . . . . . . . . . . . . . . . . . . Intel | -11 -10 -10 -10 -9 -8 -7 -7 -6 -6 -6 -6 -5 -5 -5 -4 -3 -3 ------- Run | Yrd Mat Min Exi Min Mat Fac DSF Fac Was Fac Low Fac Was Fac Fac Res Tes Robot Analysis Total . | . . . . . . . . . . . . . . . . . . Derelict Logs Recovered 1 | . . 1 . . . . . . . . . . . . . . . Drone Launches 2 | . . . . . . . 2 . . . . . . . . . . Drone Recoveries 2 | . . . . . . . 2 . . . . . . . . . . Exploration | -11 -10 -10 -10 -9 -8 -7 -7 -6 -6 -6 -6 -5 -5 -5 -4 -3 -3 ------------- Run | Yrd Mat Min Exi Min Mat Fac DSF Fac Was Fac Low Fac Was Fac Fac Res Tes Turns Passed 5436 | 158 171 716 557 427 557 222 352 60 33 162 270 375 101 499 248 374 154 Spaces Moved 5041 | 80 63 485 463 353 270 180 156 172 88 446 164 241 84 931 395 321 149 Core 453 | 3 . 4 . . . . 26 . . . 83 206 32 28 . 54 17 Treads 201 | 77 63 60 . . . . . . . . . . . . . . 1 Legs 1843 | . . 421 463 353 270 180 54 . . . 15 35 52 . . . . Wheels . | . . . . . . . . . . . . . . . . . . Hover 357 | . . . . . . . . . . . . . . . . 226 131 Flight 2187 | . . . . . . . 76 172 88 446 66 . . 903 395 41 . Fastest Speed 29 | 50 160 120 120 120 120 120 29 29 32 32 32 120 100 40 40 40 50 Average Speed 86 | 155 160 125 120 120 167 122 79 31 32 32 83 145 112 45 40 76 77 Slowest Speed 350 | 160 160 200 120 120 190 190 250 32 32 32 150 150 120 350 40 147 160 Overloaded Moves . | . . . . . . . . . . . . . . . . . . Propulsion Burnouts . | . . . . . . . . . . . . . . . . . . Robots Hopped 2 | . . . . . . . . . . . . . . 2 . . . Cave-ins Triggered 1 | . . . . . . . . . . . . . . . . 1 . Exploration Rate (%) 34 | 7 14 95 90 69 19 4 71 3 79 14 12 7 72 24 11 11 18 Regions Visited 17 Branch Regions 5 Pre-discovered Areas 3 | . . . 1 1 . . . . . . 1 . . . . . . Known Exits Taken 4 | . . . 1 . . 1 . . . . . . . 1 1 . . Unknown Exits Taken 8 | 1 1 1 . 1 1 . . . . 1 1 . . . . 1 . Scrap Searched 2 | . . 1 . 1 . . . . . . . . . . . . . Spaces Dug 23 | . . . . . . . . 2 . . . . . 3 7 11 . Terrain Destroyed 101 | . . 26 . . . . 52 2 . . . . . 3 7 11 . Melee 23 | . . . . . . . . 2 . . . . . 3 7 11 . Projectile . | . . . . . . . . . . . . . . . . . . AOE 78 | . . 26 . . . . 52 . . . . . . . . . . Terrain Rammed . | . . . . . . . . . . . . . . . . . . Walls Destroyed . | . . . . . . . . . . . . . . . . . . Machines Disabled . | . . . . . . . . . . . . . . . . . . Actions | -11 -10 -10 -10 -9 -8 -7 -7 -6 -6 -6 -6 -5 -5 -5 -4 -3 -3 --------- Run | Yrd Mat Min Exi Min Mat Fac DSF Fac Was Fac Low Fac Was Fac Fac Res Tes Total 5805 | 96 98 547 465 357 369 182 324 174 92 464 243 266 90 987 461 403 187 Wait 379 | . 10 8 . 1 69 . 77 . 4 12 27 23 7 39 45 26 31 Move 5022 | 79 62 484 462 352 269 179 155 172 87 445 163 241 83 926 394 320 149 Hop 2 | . . . . . . . . . . . . . . 2 . . . Pick Up 45 | 3 2 8 1 2 8 1 4 . 1 2 4 1 . 2 2 3 1 Fast Attach 53 | 6 2 5 . . 3 1 13 . . 3 8 . . 5 1 4 2 Attach 34 | . . 6 . . 5 . 9 . . . 3 1 . 3 1 4 2 Detach 19 | . 2 4 . . 3 . 8 . . . . . . . 1 . 1 Swap 1 | . . . . . 1 . . . . . . . . . . . . Drop 35 | . . 6 1 2 6 1 11 . . 2 1 . . 2 1 2 . Fire 106 | 8 19 24 . . 4 . 41 . . . 7 . . 1 1 . 1 Melee 82 | . . . . . . . . 2 . . 30 . . 7 15 28 . Ram 3 | . . . . . . . . . . . . . . . . 3 . Kick 3 | . . 2 . . 1 . . . . . . . . . . . . Crush 1 | . 1 . . . . . . . . . . . . . . . . Escape Stasis 19 | . . . . . . . 6 . . . . . . . . 13 . Rewire 1 | . . . 1 . . . . . . . . . . . . . . Trap . | . . . . . . . . . . . . . . . . . . Miscellaneous . | . . . . . . . . . . . . . . . . . . Route ------- -11/Scrapyard -10/Materials -10/Mines (discovered 3 exits: [*Mat x2] / *Exi) -10/Exiles (discovered 2 exits: *Min x2) -9/Mines (discovered 2 exits: *Mat x2) -8/Materials -7/Factory -7/DSF -6/Factory -6/Waste -6/Factory -6/Lower Caves -5/Factory -5/Waste -5/Factory (discovered 5 exits: *Fac x4 / [*Ext]) -4/Factory (discovered 4 exits: *Res x4) -3/Research -3/Testing History --------- Turn | Location | Event 30 | -11/Scrapyard | Discovered new exit (range 16) 159 | -11/Scrapyard | Entered Materials 182 | -10/Materials | Discovered new exit (range 16) 316 | -10/Materials | Build established: Mutant 330 | -10/Materials | Entered Mines 476 | -10/Mines | Lost 3 parts (1p2n) 517 | -10/Mines | Discovered new exit (range 9) 543 | -10/Mines | Core integrity fell below 50% 784 | -10/Mines | Discovered new exit (range 10) 810 | -10/Mines | Found the Drone Emporium 819 | -10/Mines | Found Prototype Device 898 | -10/Mines | Identified Splice Drone Bay 1042 | -10/Mines | Deemed a non-threat by the Exiles lab entrance 1042 | -10/Mines | Discovered new exit (range 5) 1046 | -10/Mines | Entered Exiles 1047 | -10/Exiles | Identified exit to Mines 1075 | -10/Exiles | Met 8R-AWN 1096 | -10/Exiles | Met EX-HEX 1149 | -10/Exiles | Met EX-BIN 1165 | -10/Exiles | Aligned with FarCom system 1166 | -10/Exiles | Given EX-Vault access code 1196 | -10/Exiles | Opened EX-Vault 1220 | -10/Exiles | Found Prototype Device 1276 | -10/Exiles | Warned to stay clear of 0b10 Research branches 1308 | -10/Exiles | Met EX-DEC 1350 | -10/Exiles | Visited The Gauntlet 1504 | -10/Exiles | Learned location of Zion (-6) 1603 | -10/Exiles | Left Exiles lab with PSU Rigger 1603 | -10/Exiles | Entered Mines 1627 | -9/Mines | YI-UF0 nonchalantly dropped a Grenade Launcher on the ground 1636 | -9/Mines | Met a Derelict bent on vengeance 1765 | -9/Mines | Learned location of Storage (-7) 1999 | -9/Mines | Discovered new exit (range 15) 2006 | -9/Mines | Discovered new exit (range 16) 2030 | -9/Mines | Entered Materials 2030 | -8/Materials | Evolved 4 slots: Propulsion x1, Utility x3 2034 | -8/Materials | Identified PSU Rigger 2494 | -8/Materials | Build established: Skirmisher 2572 | -8/Materials | Discovered new exit (range 9) 2587 | -8/Materials | Entered Factory 2587 | -7/Factory | Evolved 2 slots: Propulsion x1, Utility x1 2808 | -7/Factory | Identified exit to DSF 2809 | -7/Factory | Entered DSF 2855 | -7/DSF | Additional patrols routed to DSF 2956 | -7/DSF | Lost 3 parts (1p2u) 3028 | -7/DSF | Lost 4 parts (2p1n1w) 3032 | -7/DSF | Sterilization system engaged 3052 | -7/DSF | Ambient heat levels rising (+10) 3067 | -7/DSF | Ambient heat levels rising (+10) 3082 | -7/DSF | Ambient heat levels rising (+10) 3097 | -7/DSF | Ambient heat levels rising (+10) 3112 | -7/DSF | Ambient heat levels rising (+10) 3126 | -7/DSF | Discovered new exit (range 16) 3127 | -7/DSF | Ambient heat levels rising (+10) 3140 | -7/DSF | Core integrity fell below 50% 3142 | -7/DSF | Ambient heat levels rising (+10) 3157 | -7/DSF | Ambient heat levels rising (+10) 3160 | -7/DSF | Core integrity fell below 20% 3161 | -7/DSF | Entered Factory 3161 | -6/Factory | Evolved 2 slots: Utility x2 3221 | -6/Factory | Sucked down chute 3221 | -6/Factory | Entered Waste 3224 | -6/Waste | Spotted C-40 Crusher 3227 | -6/Waste | Spotted C-40 Crusher 3236 | -6/Waste | EMP discharged 3236 | -6/Waste | System corruption reached 10% 3238 | -6/Waste | Spotted C-40 Crusher 3239 | -6/Waste | Spotted C-40 Crusher 3243 | -6/Waste | Spotted C-40 Crusher 3250 | -6/Waste | Spotted C-40 Crusher 3250 | -6/Waste | Discovered new exit (range 13) 3254 | -6/Waste | Entered Factory 3400 | -6/Factory | Discovered new exit (range 8) 3405 | -6/Factory | Build established: Sprinter 3416 | -6/Factory | Entered Lower Caves 3457 | -6/Lower Caves | Attracted the attention of an 0b10 checkpoint 3492 | -6/Lower Caves | Lost 5 parts (3n1u1w) 3495 | -6/Lower Caves | Core integrity fell below 50% 3527 | -6/Lower Caves | Met a Warlord Commander 3528 | -6/Lower Caves | Learned location of Warlord (-5) 3529 | -6/Lower Caves | Warlord Commander delivered Encrypted Comm Array 3536 | -6/Lower Caves | Found Encrypted Comm Array 3630 | -6/Lower Caves | Core integrity fell below 20% 3643 | -6/Lower Caves | 1C-UTU showed up to help 3647 | -6/Lower Caves | 1C-UTU revealed a hidden path 3686 | -6/Lower Caves | Entered Factory 3686 | -5/Factory | Evolved 2 slots: Power x1, Utility x1 3950 | -5/Factory | Build established: Scavenger-Mutant 4038 | -5/Factory | Central database locked down 4061 | -5/Factory | Sucked down chute 4061 | -5/Factory | Entered Waste 4068 | -5/Waste | Spotted C-40 Crusher 4076 | -5/Waste | EMP discharged 4098 | -5/Waste | Crushed by Compactor (1 part destroyed, 1 dropped) 4120 | -5/Waste | Spotted C-40 Crusher 4131 | -5/Waste | Crushed by Compactor (1 part destroyed, 1 dropped) 4131 | -5/Waste | Spotted C-40 Crusher 4135 | -5/Waste | Spotted C-40 Crusher 4151 | -5/Waste | Discovered new exit (range 12) 4162 | -5/Waste | Entered Factory 4598 | -5/Factory | Identified exit to Factory 4639 | -5/Factory | Discovered new exit (range 16) 4645 | -5/Factory | Joined by Warlord Muscle squad 4661 | -5/Factory | Entered another Factory area 4661 | -4/Factory | Evolved 2 slots: Propulsion x1, Weapon x1 4721 | -4/Factory | Spotted B-86 Titan 4868 | -4/Factory | Discovered new exit (range 9) 4889 | -4/Factory | Identified exit to Research 4891 | -4/Factory | Build established: Hacker-Mutant 4909 | -4/Factory | Entered Research 4909 | -3/Research | Evolved 2 slots: Propulsion x1, Utility x1 4995 | -3/Research | Hacking Suite fried by hacking feedback 5246 | -3/Research | Core integrity fell below 50% 5260 | -3/Research | Crushed by falling debris 5266 | -3/Research | Discovered new exit (range 14) 5283 | -3/Research | Entered Testing 5284 | -3/Testing | Maximum security lockdown engaged 5297 | -3/Testing | Lost 12 parts (1p1n7u3w) 5384 | -3/Testing | Core integrity fell below 20% 5437 | -3/Testing | Destroyed by G-67 Veteran with Field Laser Last Messages --------------- 05419_ P-80 Master unfolds itself. 05419_ I-47 Archangel unfolds itself. 05419_ Penetrated by Slug. 05426_ Cmb. Gravmag System blown off. 05426_ E-15 Imp destroyed. 05429_ Subatomic Condenser disabled. 05432_ Acquired Prototype Treads. 05432_ Identified Enh. Armored Medium Treads. 05434_ C-30 ARC bursts open, deploying its payload. 05434_ G-73 Enforcer unfolds itself. 05434_ G-67 Veteran unfolds itself. 05434_ L-61 Swordsman unfolds itself. 05434_ G-67 Veteran unfolds itself. 05434_ I-47 Archangel unfolds itself. 05435_ C-30 ARC bursts open, deploying its payload. 05435_ G-73 Enforcer unfolds itself. 05435_ G-67 Veteran unfolds itself. [Achievement: Just Browsing] Map ----- +----------------------------------------------------+ | ?# """"" ""#????????????????????????????????? | | ?# """"" ""#????????????????????????????????? | | ?# """"" ""#????????????????????????????????? | | ## #??????????????????????????????????? | | " #??????????????????????????????????? | | ########+####+####???????????????????????????????? | | #???????????????????????????????? | | ##########??????????????????????? | | """"""" / #??????????????????????? | | ! """"""" # """ #??????????????????????? | | ###### """"""" # """ #??????????????????????? | | ?????# # """ #??????????????????????? | | ???#?# # #??????????????????????? | | ????? " # """gg #??????????????????????? | | ?? ? "%" #h """ #??????????????????????? | | ????"""""%""""" # /"""g #??????????????????????? | | ????""""" """"" [# =%= #??????????????????????? | | ????""""" """"" C# =""" #??????????????????????? | | ????????? ??? b # i""" #??????????????????????? | | ????????? ""??" g# "" p #??????????????????????? | | ??? ??????"???"g # g p #??????????????????????? | | ?????????????"" i# " #??????????????????????? | | ?????????????g %/gl""" #??????????????????????? | | ????????????w #g """ #??????????????????????? | | ???????????#? ?# p =!#??????????????????????? | | ?????????????????# g @#??????????????????????? | | ????????????????n##########??????????????????????? | | ?????????????????????????????????????????????????? | | ?????????????????????????????????????????????????? | | ?????????????????????????????????????????????????? | | ?????????????????????????????????????????????????? | | ?????????????????????????????????????????????????? | | ?????????????????????????????????????????????????? | | ??????????????????o??????????????????????????????? | | ?????????????????????????????????????????????????? | | ?????????????????????????????????????????????????? | | ?????????????????????????????????????????????????? | | ?????????????????????????????????w???????????????? | | ?????????????????????????????????????????????????? | | ?????????????????????????????????????????????????? | | ?????????????????????????????????????????????????? | | ?????????????????????????????????????????????????? | | ?????????????????????????????????????????????????? | | ?????????????????????????????????????????????????? | | ?????????????????????????????????????????????????? | | ?????????????????????????????????????????????????? | | ?????????????????????????????????????????????????? | | ?????????????????????????????????????????????????? | | ?????????????????????????????????????????????????? | | ?????????????????????????????????????????????????? | +----------------------------------------------------+ Best States ------------- Heat Dissipation 54 Energy Generation 23 Energy Capacity 340 Matter Stores 300 Matter Capacity 300 Sight Range 16 Terrain Scan Range 24 Terrain Scan Density 10 ECM Strength 1 Corruption Containment 8 Armor Coverage 150 Weapon Shielding 90 Evasion (%) 63 Melee Accuracy 13 Core Analysis 6 Recoil Reduction 2 Particle Charging 15 Offensive Hacking 32 Item Schematics ----------------- None Robot Schematics ------------------ None Fabricated ------------ Nothing Alien Tech Used ----------------- None Achievements -------------- Dangerous Findings Just Browsing Novice Programmer Part-time Excavator Challenges ------------ None Game ------ Seed GuidanceBurstDetonator Manual? 0 Play Time 01:44:12 Cumulative 27.7 hours Start 2024.11.11 @ 20:39:30 End 2024.11.12 @ 22:11:52 Sessions 2 Manual Loads 0 Difficulty Rogue Special Mode None Game No. 53 Rogue 53 Adventurer 0 Explorer 0 Win Type - Total 0 Types 0/0/0/0/0/0/0/0/0 Lore% 12 Gallery% 26 Achievement% 23 Wizard Run 0 Options --------- Layout 2 ASCII 0 Keyboard 1 Movement Numpad Keybinds 0 Fullscreen 1 Font 32/SmallcapsGlow Map View 50x44 Zoom Use 0% Tactical HUD 1 Map Filters NONE Filters NONE Steam 1 RUN: 6c8837f6-048f-497c-a700-56e8bd712d7b